bitfinex-derivatives/quotes_BTCF0:USTF0_20241021
["timestamp","ask_amount","ask_price","bid_price","bid_amount"]
[1729523237983,0.001,67025.0,67023.0,0.074627]
[1729523238174,0.001,67025.0,67020.0,0.3608]
[1729523238370,0.3608,67038.0,67020.0,0.3608]
[1729523238570,0.3608,67029.0,67023.0,0.001]
[1729523238879,0.074637,67014.0,67013.0,0.00084]
[1729523239185,0.074637,67014.0,67000.0,0.3608]
[1729523239186,0.435437,67014.0,67000.0,0.3608]
[1729523239383,0.074644,67008.0,67000.0,0.3608]
[1729523239577,0.3608,67014.0,67001.0,0.00246273]
[1729523239779,0.074647,67006.0,67000.0,0.3608]
[1729523239986,0.074651,67002.0,67000.0,0.3608]
[1729523240195,0.074649,67003.0,67000.0,0.3608]
[1729523240381,0.074651,67001.0,67000.0,0.3608]
[1729523240778,0.074655,66998.0,66997.0,0.00223863]
[1729523241085,0.074655,66998.0,66977.0,0.3608]
[1729523241086,0.522413,67000.0,66971.0,0.36303979]
[1729523241287,0.3608,66990.0,66978.0,0.074677]
[1729523241491,0.3608,66990.0,66977.0,0.3608]
[1729523241689,0.074665,66989.0,66977.0,0.3608]
[1729523241891,0.074666,66988.0,66972.0,0.074683]
[1729523242114,0.07467,66985.0,66978.0,0.08248694]
[1729523242280,0.074668,66987.0,66979.0,0.074675]
[1729523242480,0.074669,66986.0,66981.0,0.074673]
[1729523242684,0.074668,66987.0,66979.0,0.0074756]
[1729523242881,0.074668,66987.0,66982.0,0.0002229]
[1729523243087,0.1454,66997.0,66984.0,0.3608]
[1729523243287,0.1454,66997.0,66986.0,0.074668]
[1729523243486,0.074665,66989.0,66986.0,0.074668]
[1729523243795,0.074667,66988.0,66985.0,0.074669]
[1729523244086,0.074663,66991.0,66984.0,0.3608]
[1729523244296,0.1454,66997.0,66984.0,0.3608]
[1729523244479,0.002,66998.0,66990.0,0.3608]
[1729523244682,0.074652,67001.0,66995.0,0.074658]
[1729523244988,0.074648,67005.0,66992.0,0.074661]
[1729523245178,0.074644,67008.0,66996.0,0.3608]
[1729523245387,0.36508001,67014.0,66996.0,0.3608]
[1729523245388,0.074641,67011.0,66996.0,0.3608]
[1729523245689,0.3608,67014.0,67004.0,0.3608]
[1729523245690,0.074637,67014.0,67004.0,0.3608]
[1729523245891,0.1515,67022.0,67005.0,0.1756]
[1729523246092,0.074627,67023.0,67010.0,0.3608]
[1729523246281,0.074627,67023.0,67018.0,0.074632]
[1729523246483,0.074623,67027.0,67012.0,0.074638]
[1729523246782,0.074623,67027.0,67017.0,0.3608]
[1729523246987,0.074613,67036.0,67025.0,0.3608]
[1729523247193,0.50226,67041.0,67025.0,0.5364]
[1729523247389,0.074608,67040.0,67030.0,0.074619]
[1729523247696,0.074608,67040.0,67032.0,0.435416]
[1729523247896,0.3608,67047.0,67033.0,0.074616]
[1729523248091,0.074603,67045.0,67029.0,0.07462]
[1729523248285,0.3608,67047.0,67029.0,0.07462]
[1729523248485,0.3608,67040.0,67029.0,0.07462]
[1729523248991,0.3748,67040.0,67032.0,0.001]
[1729523249193,0.014,67040.0,67039.0,0.074609]
[1729523249391,0.01299936,67040.0,67039.0,0.522089]
[1729523249694,0.3608,67060.0,67039.0,1.122089]
[1729523249910,0.3608,67060.0,67056.0,0.074589]
[1729523250098,0.3608,67060.0,67053.0,0.1756]
[1729523250394,0.3608,67060.0,67048.0,0.074599]
[1729523250594,0.3608,67060.0,67047.0,0.1756]
[1729523250782,0.3608,67060.0,67044.0,0.3608]
[1729523250985,0.074599,67049.0,67044.0,0.3528]
[1729523251186,0.3608,67054.0,67037.0,0.3608]
[1729523251500,0.074597,67050.0,67041.0,0.074606]
[1729523251797,0.001,67040.0,67039.0,0.007]
[1729523251981,0.001,67040.0,67039.0,0.081609]
[1729523252186,0.001,67040.0,67039.0,0.074609]
[1729523252408,0.3618,67054.0,67037.0,0.3748]
[1729523252585,0.074599,67049.0,67041.0,0.074607]
[1729523252787,0.074599,67049.0,67042.0,0.074605]
[1729523253095,0.074599,67049.0,67037.0,0.3748]
[1729523253096,0.074608,67040.0,67039.0,0.002]
[1729523253390,0.074608,67040.0,67007.0,0.074644]
[1729523253391,0.074618,67031.0,67025.0,0.0768619]
[1729523253596,0.3608,67036.0,67028.0,0.07462]
[1729523253904,0.3608,67036.0,67029.0,0.07462]
[1729523254194,0.3608,67036.0,67025.0,0.0022379]
[1729523254195,0.074616,67033.0,67025.0,0.0022379]
[1729523254394,0.3608,67036.0,67025.0,0.0022379]
[1729523254583,0.435413,67036.0,67029.0,0.07462]
[1729523254789,0.074614,67035.0,67029.0,0.07462]
[1729523255501,0.001,67033.0,67030.0,0.074618]
[1729523255706,0.001,67033.0,67032.0,0.074617]
[1729523256200,0.3608,67036.0,67032.0,0.074617]
[1729523256399,0.3618,67036.0,67029.0,0.003]
[1729523256696,0.003,67033.0,67027.0,0.3608]
[1729523256898,0.003,67033.0,67031.0,0.074618]
[1729523257202,0.013,67033.0,67031.0,0.074618]
[1729523257392,0.013,67033.0,67032.0,0.522177]
[1729523257596,0.3608,67051.0,67032.0,0.435417]
[1729523257902,0.64232001,67064.0,67046.0,0.3608]
[1729523258198,0.6402,67064.0,67046.0,0.3608]
[1729523258399,0.074593,67054.0,67049.0,0.074597]
[1729523258606,0.6402,67064.0,67048.0,0.3608]
[1729523258790,0.074585,67061.0,67056.0,0.07459]
[1729523259206,0.64232001,67064.0,67048.0,0.3608]
[1729523259498,0.64232001,67064.0,67044.0,0.1834]
[1729523259499,0.6402,67064.0,67057.0,0.074589]
[1729523259705,0.074583,67063.0,67055.0,0.3608]
[1729523259909,0.074583,67063.0,67058.0,0.074588]
[1729523260389,0.2794,67064.0,67055.0,0.3608]
[1729523260591,0.3608,67060.0,67044.0,0.1834]
[1729523260805,0.3608,67060.0,67048.0,0.3608]
[1729523261104,0.51412001,67066.0,67048.0,0.3608]
[1729523261306,0.009,67063.0,67059.0,0.074586]
[1729523261603,0.003,67061.0,67060.0,0.074585]
[1729523261800,0.003,67061.0,67036.0,0.3608]
[1729523262104,0.3608,67046.0,67039.0,0.074608]
[1729523262403,0.3608,67046.0,67041.0,0.074606]
[1729523262633,0.074603,67045.0,67038.0,0.07461]
[1729523262794,0.3608,67046.0,67042.0,0.074606]
[1729523262995,0.3608,67046.0,67038.0,0.25801]
[1729523263190,0.3608,67046.0,67038.0,0.1834]
[1729523263401,0.3608,67046.0,67036.0,0.014]
[1729523263702,0.3608,67046.0,67041.0,0.007]
[1729523263703,0.074606,67042.0,67041.0,0.007]
[1729523264701,0.3608,67057.0,67041.0,0.63984]
[1729523264908,0.074593,67054.0,67043.0,0.3608]
[1729523265092,0.3608,67057.0,67043.0,0.3608]
[1729523265294,0.3608,67057.0,67048.0,0.074599]
[1729523265495,0.3608,67057.0,67043.0,0.3608]
[1729523265694,0.3608,67057.0,67044.0,0.18336]
[1729523265891,0.3608,67057.0,67049.0,0.074598]
[1729523266200,0.3608,67057.0,67051.0,0.074596]
[1729523266201,0.074593,67053.0,67051.0,0.074596]
[1729523266399,0.3608,67057.0,67051.0,0.074596]
[1729523266599,0.50664001,67065.0,67050.0,0.3608]
[1729523266804,0.3608,67065.0,67058.0,0.074587]
[1729523267105,0.3608,67065.0,67055.0,0.18336]
[1729523267409,0.074584,67062.0,67057.0,0.074589]
[1729523267914,0.074585,67061.0,67057.0,0.074589]
[1729523268205,0.074587,67059.0,67055.0,0.17536]
[1729523268508,0.3748,67065.0,67053.0,0.074593]
[1729523268509,0.014,67065.0,67064.0,0.074581]
[1729523268708,0.014,67065.0,67064.0,0.882701]
[1729523269009,0.014,67065.0,67064.0,0.435381]
[1729523269200,0.014,67065.0,67064.0,0.882701]
[1729523269398,0.3608,67081.0,67064.0,0.80812]
[1729523269604,0.074567,67078.0,67064.0,0.3608]
[1729523269806,0.07457,67075.0,67064.0,0.3608]
[1729523270006,0.074565,67079.0,67071.0,0.074573]
[1729523270203,0.074565,67079.0,67070.0,0.074574]
[1729523270407,0.3608,67081.0,67071.0,0.074573]
[1729523270607,0.074569,67075.0,67071.0,0.074573]
[1729523270808,0.074569,67075.0,67067.0,0.18336]
[1729523271012,0.074567,67077.0,67072.0,0.074572]
[1729523271206,0.074567,67077.0,67073.0,0.074571]
[1729523271406,0.004,67079.0,67073.0,0.074571]
[1729523271605,0.004,67079.0,67067.0,0.18336]
[1729523271606,0.3608,67075.0,67067.0,0.18336]
[1729523271809,0.074572,67073.0,67070.0,0.074574]
[1729523272411,0.3608,67075.0,67073.0,0.001]
[1729523272706,0.003,67075.0,67074.0,0.07457]
[1729523273096,0.003,67075.0,67074.0,0.52185]
[1729523273300,0.3608,67088.0,67074.0,0.52185]
[1729523273518,0.3608,67097.0,67078.0,0.3608]
[1729523273701,0.074546,67096.0,67093.0,0.074549]
[1729523273902,0.074548,67094.0,67085.0,0.18332]
[1729523274115,0.435345,67097.0,67086.0,0.074557]
[1729523274306,0.435345,67097.0,67085.0,0.18332]
[1729523274307,0.435345,67097.0,67092.0,0.074549]
[1729523274609,0.435345,67097.0,67086.0,0.074557]
[1729523274610,0.074546,67096.0,67086.0,0.074557]
[1729523274814,0.3608,67097.0,67085.0,0.18332]
[1729523275011,0.3608,67097.0,67096.0,0.074546]
[1729523275403,0.3638,67097.0,67096.0,0.074546]
[1729523275707,0.003,67097.0,67096.0,0.074546]
[1729523275913,0.003,67097.0,67096.0,0.882466]
[1729523276215,0.07453,67110.0,67105.0,0.074536]
[1729523276410,0.3608,67111.0,67103.0,0.18332]
[1729523276727,0.43532,67119.0,67112.0,0.074527]
[1729523277017,0.3608,67119.0,67103.0,0.19074734]
[1729523277215,0.3608,67119.0,67111.0,0.074528]
[1729523277411,0.3608,67119.0,67108.0,0.3608]
[1729523277600,0.3608,67119.0,67112.0,0.074528]
[1729523277601,0.074523,67117.0,67112.0,0.074528]
[1729523277800,0.3608,67119.0,67108.0,0.3608]
[1729523277997,0.074532,67108.0,67102.0,0.3608]
[1729523278212,0.3608,67109.0,67096.0,0.3618]
[1729523278409,0.3608,67109.0,67102.0,0.18328]
[1729523278616,0.074538,67103.0,67102.0,0.18328]
[1729523278815,0.074534,67107.0,67102.0,0.257819]
[1729523279110,0.3608,67109.0,67102.0,0.18328]
[1729523279311,0.3608,67109.0,67103.0,0.001]
[1729523279609,0.007,67111.0,67110.0,0.07453]
[1729523280016,0.074526,67114.0,67110.0,0.07453]
[1729523280222,0.3608,67119.0,67109.0,0.07453]
[1729523280402,0.3608,67119.0,67105.0,0.3608]
[1729523280403,0.074529,67112.0,67106.0,0.074535]
[1729523280607,0.1434,67123.0,67104.0,0.18328]
[1729523280608,0.3608,67107.0,67104.0,0.18328]
[1729523280802,0.3608,67120.0,67107.0,0.074533]
[1729523280803,0.07453,67111.0,67107.0,0.074533]
[1729523281006,0.08853,67111.0,67110.0,0.001]
[1729523281504,0.08853,67111.0,67110.0,0.00056195]
[1729523281708,0.08853,67111.0,67110.0,0.00156195]
[1729523282808,0.3608,67113.0,67110.0,0.001]
[1729523283005,0.3608,67113.0,67112.0,0.074528]
[1729523283615,0.3608,67113.0,67110.0,0.001]
[1729523283914,0.014,67111.0,67110.0,0.07653]
[1729523284513,0.014,67113.0,67112.0,0.001]
[1729523284707,0.014,67113.0,67112.0,0.002]
[1729523285221,0.014,67113.0,67112.0,0.001]
[1729523285515,0.088527,67113.0,67112.0,0.001]
[1729523285719,0.088527,67113.0,67091.0,0.074551]
[1729523285720,0.01404,67113.0,67091.0,0.074551]
[1729523286014,0.01404,67113.0,67112.0,0.001]
[1729523286015,0.074567,67113.0,67112.0,0.001]
[1729523286517,0.074567,67113.0,67110.0,0.001]
[1729523286713,0.07453,67110.0,67098.0,0.074543]
[1729523286922,0.3608,67108.0,67102.0,0.001]
[1729523287415,0.074538,67103.0,67102.0,0.001]
[1729523288514,0.075538,67103.0,67102.0,0.001]
[1729523289011,0.075538,67103.0,67092.0,0.00223575]
[1729523289012,1.04708,67103.0,67092.0,0.00223575]
[1729523289210,0.074551,67091.0,67067.0,0.3608]
[1729523289417,0.7216,67093.0,67067.0,0.3608]
[1729523289418,0.3608,67083.0,67082.0,0.074561]
[1729523289923,0.3174,67090.0,67086.0,0.074557]
[1729523289924,0.391953,67090.0,67086.0,0.074557]
[1729523290130,0.3608,67093.0,67079.0,0.3608]
[1729523290131,0.074551,67091.0,67079.0,0.3608]
[1729523290316,0.074551,67091.0,67088.0,0.074554]
[1729523290517,0.002,67083.0,67080.0,0.074563]
[1729523290715,0.002,67083.0,67082.0,0.074561]
[1729523291327,0.002,67083.0,67070.0,0.18784]
[1729523291525,0.002,67083.0,67068.0,0.18784]
[1729523291526,0.3608,67081.0,67068.0,0.18784]
[1729523291723,0.3608,67081.0,67080.0,0.074563]
[1729523292029,0.3608,67093.0,67080.0,0.3608]
[1729523292215,0.074554,67089.0,67080.0,0.3608]
[1729523292419,0.074561,67082.0,67079.0,0.074564]
[1729523292623,0.3608,67086.0,67077.0,0.074567]
[1729523292836,0.3608,67086.0,67066.0,0.00742815]
[1729523293024,0.3608,67086.0,67072.0,0.3608]
[1729523293025,0.001,67081.0,67072.0,0.3608]
[1729523293221,0.001,67081.0,67080.0,0.074563]
[1729523293736,0.3608,67086.0,67077.0,0.074567]
[1729523293922,0.3608,67086.0,67079.0,0.074564]
[1729523294123,0.074563,67080.0,67079.0,0.074564]
[1729523294520,0.074563,67080.0,67073.0,0.009]
[1729523294521,0.07457,67076.0,67075.0,0.074568]
[1729523295036,0.3608,67080.0,67073.0,0.009]
[1729523295233,0.435364,67080.0,67079.0,0.074565]
[1729523295429,0.3608,67080.0,67079.0,0.074565]
[1729523296128,0.3608,67080.0,67075.0,0.003]
[1729523296129,0.074568,67076.0,67075.0,0.077568]
[1729523296328,0.074568,67076.0,67075.0,0.074568]
[1729523298838,0.074568,67076.0,67075.0,0.01]
[1729523299034,0.074568,67076.0,67066.0,0.19515189]
[1729523299035,0.074568,67076.0,67059.0,0.074587]
[1729523299223,0.074583,67062.0,67047.0,0.4354]
[1729523299425,0.074615,67036.0,67035.0,0.074613]
[1729523299726,0.074615,67036.0,67032.0,0.00223787]
[1729523299727,0.074616,67033.0,67032.0,0.00223787]
[1729523300539,0.3608,67035.0,67009.0,0.36839352]
[1729523300738,0.074626,67024.0,67021.0,0.074629]
[1729523300928,0.3608,67025.0,67017.0,0.074633]
[1729523301127,0.3608,67019.0,67013.0,0.074638]
[1729523301337,0.3608,67019.0,67010.0,0.00034719]
[1729523301527,0.3608,67019.0,67003.0,0.00970695]
[1729523301528,0.074635,67017.0,67003.0,0.00970695]
[1729523301723,0.074635,67017.0,67014.0,0.074636]
[1729523302045,0.3608,67019.0,67010.0,0.00011134]
[1729523302337,0.074634,67017.0,67015.0,0.074636]
[1729523302733,0.075634,67017.0,67015.0,0.074636]
[1729523302936,0.002,67017.0,67015.0,0.074636]
[1729523303124,0.074635,67016.0,67015.0,0.074636]
[1729523303331,0.002,67017.0,67016.0,0.074635]
[1729523304440,0.002,67017.0,67015.0,0.006]
[1729523304441,0.074635,67016.0,67015.0,0.006]
[1729523304632,0.074635,67016.0,67003.0,0.00223882]
[1729523304633,0.074646,67006.0,67003.0,0.00223882]
[1729523305033,0.3608,67008.0,67003.0,0.00223882]
[1729523305345,0.074648,67004.0,67003.0,0.00223882]
[1729523305841,0.3608,67008.0,67007.0,0.074645]
[1729523306327,0.3608,67008.0,67007.0,0.522365]
[1729523306528,0.3608,67008.0,67007.0,0.07699638]
[1729523306733,0.3608,67021.0,67007.0,0.45007138]
[1729523306939,0.1733,67031.0,67017.0,0.074633]
[1729523306940,0.074628,67022.0,67017.0,0.074633]
[1729523307134,0.074628,67022.0,67009.0,0.3608]
[1729523307135,0.074624,67026.0,67022.0,0.074628]
[1729523307647,0.074625,67025.0,67009.0,0.3608]
[1729523307840,0.074625,67025.0,67010.0,0.074641]
[1729523308144,0.1733,67031.0,67015.0,0.3608]
[1729523308145,0.07462,67030.0,67015.0,0.3608]
[1729523308325,0.3608,67034.0,67027.0,0.074622]
[1729523308526,0.074617,67032.0,67028.0,0.07462]
[1729523308750,0.3608,67034.0,67021.0,0.074628]
[1729523309039,0.074619,67031.0,67015.0,0.3608]
[1729523309242,0.074621,67028.0,67022.0,0.074627]
[1729523309473,0.7216,67023.0,67008.0,0.3608]
[1729523309742,0.3608,67015.0,67013.0,0.074638]
[1729523309946,0.3608,67015.0,67009.0,0.074642]
[1729523310127,0.3608,67015.0,67014.0,0.00077932]
[1729523310331,0.001,67034.0,67014.0,0.00077932]
[1729523310332,0.074626,67024.0,67018.0,0.074632]
[1729523310534,0.074626,67024.0,67009.0,0.00023588]
[1729523310835,0.37829799,67029.0,67008.0,0.37825425]
[1729523311140,0.074633,67018.0,67010.0,0.00034719]
[1729523311343,0.3608,67015.0,67009.0,0.00011133]
[1729523311543,0.3608,67015.0,67007.0,0.074644]
[1729523311847,0.3608,67015.0,67005.0,0.00190596]
[1729523312246,0.074644,67008.0,67006.0,0.074646]
[1729523312430,0.074641,67011.0,67006.0,0.00168325]
[1729523312741,0.3608,67015.0,67003.0,0.02402475]
[1729523312742,0.3608,67015.0,67014.0,0.074637]
[1729523312943,0.074635,67017.0,67016.0,0.074635]
[1729523313250,0.435429,67022.0,67012.0,0.3608]
[1729523313440,0.435429,67022.0,67020.0,0.07463]
[1729523313642,0.3608,67022.0,67021.0,0.074629]
[1729523313844,0.3608,67031.0,67021.0,0.074629]
[1729523313845,0.3608,67023.0,67021.0,0.074629]
[1729523314036,0.3608,67023.0,67012.0,0.3608]
[1729523314244,0.001,67017.0,67016.0,0.074635]
[1729523314750,0.001,67017.0,67016.0,0.522275]
[1729523315442,0.003,67017.0,67016.0,0.522275]
[1729523315950,0.002,67017.0,67016.0,0.522275]
[1729523316136,0.002,67017.0,67012.0,0.3608]
[1729523316137,0.002,67022.0,67021.0,0.074629]
[1729523316539,0.001,67017.0,67016.0,0.003]
[1729523316855,0.001,67017.0,67016.0,0.077635]
[1729523317052,0.076634,67017.0,67016.0,0.525275]
[1729523317352,0.002,67017.0,67016.0,0.525275]
[1729523318347,0.002,67017.0,67016.0,0.713475]
[1729523318740,0.3608,67031.0,67016.0,0.710475]
[1729523318936,0.3608,67031.0,67019.0,0.074631]
[1729523318937,0.07462,67030.0,67019.0,0.074631]
[1729523319136,0.07462,67030.0,67029.0,0.07462]
[1729523320354,0.001,67030.0,67029.0,0.07462]
[1729523320553,0.002,67030.0,67021.0,0.1882]
[1729523320846,0.002,67030.0,67025.0,0.074624]
[1729523320847,0.074625,67026.0,67025.0,0.074624]
[1729523321049,0.002,67030.0,67019.0,0.003]
[1729523321246,0.07463,67020.0,67019.0,0.003]
[1729523321640,0.07463,67020.0,67005.0,0.435447]
[1729523321842,0.074646,67006.0,67005.0,0.435447]
[1729523322040,0.074646,67006.0,67005.0,0.074647]
[1729523322249,0.074646,67006.0,67005.0,0.07564922]
[1729523322550,0.074648,67004.0,67000.0,0.074652]
[1729523322751,0.074648,67004.0,66998.0,0.00746285]
[1729523322942,0.074648,67004.0,66990.0,0.3608]
[1729523323253,0.074648,67004.0,66997.0,0.074655]
[1729523323551,0.074648,67004.0,66996.0,0.02134639]
[1729523323742,0.074648,67004.0,66986.0,0.1795]
[1729523323743,1.04772,67004.0,66986.0,0.0179]
[1729523323947,0.435467,66987.0,66986.0,0.0179]
[1729523326255,0.3608,66987.0,66986.0,0.0179]
[1729523326456,0.001,66987.0,66986.0,0.02213308]
[1729523326665,0.002,66987.0,66986.0,0.02213308]
[1729523326856,0.002,66987.0,66986.0,0.09680108]
[1729523327350,0.002,66987.0,66986.0,0.02213308]
[1729523327351,0.001,66987.0,66986.0,0.02213308]
[1729523327551,0.002,66987.0,66986.0,0.09680108]
[1729523328146,0.002,66987.0,66986.0,0.54464108]
[1729523328344,0.3608,67030.0,67002.0,0.07465]
[1729523328551,0.3608,67030.0,67017.0,0.3608]
[1729523328552,0.074632,67018.0,67017.0,0.3608]
[1729523328951,0.07463,67021.0,67017.0,0.3608]
[1729523329145,0.07463,67021.0,67014.0,0.074636]
[1729523329350,0.07463,67020.0,67013.0,0.074637]
[1729523329552,0.07463,67020.0,67012.0,0.18828]
[1729523329747,0.3608,67022.0,67012.0,0.18828]
[1729523329948,0.3608,67022.0,67003.0,0.1752384]
[1729523329949,0.074641,67010.0,67003.0,0.074649]
[1729523330167,0.7216,67007.0,66982.0,0.02013951]
[1729523330357,0.3608,66988.0,66982.0,0.02013951]
[1729523330563,0.3608,66988.0,66987.0,0.07633767]
[1729523330747,0.3608,66988.0,66987.0,0.074667]
[1729523330944,0.3608,66988.0,66987.0,0.07823165]
[1729523331856,0.074643,67009.0,66987.0,0.07823165]
[1729523331857,0.3608,67003.0,66987.0,0.52607165]
[1729523332058,0.3608,67003.0,66999.0,0.074653]
[1729523332363,0.3608,67003.0,67002.0,0.07465]
[1729523333050,0.3608,67013.0,66990.0,0.1705]
[1729523333250,0.3608,67013.0,67005.0,0.074647]
[1729523333251,0.3608,67006.0,67005.0,0.074647]
[1729523335166,0.3608,67006.0,67005.0,0.522367]
[1729523335460,0.3618,67006.0,67005.0,0.087647]
[1729523335957,0.3618,67006.0,67005.0,0.273927]
[1729523336360,0.3618,67006.0,67005.0,0.085647]
[1729523336361,0.436446,67006.0,67005.0,0.085647]
[1729523336549,0.435446,67006.0,67005.0,0.003]
[1729523336865,0.435446,67006.0,67005.0,0.007]
[1729523338362,0.436446,67006.0,67005.0,0.017]
[1729523338955,0.437446,67006.0,67005.0,0.005]
[1729523339569,0.3628,67006.0,66995.0,0.074657]
[1729523339866,0.3628,67006.0,66999.0,0.074654]
[1729523339867,0.435452,67000.0,66999.0,0.074654]
[1729523340467,0.435452,67000.0,66970.0,0.097085]
[1729523340468,0.074661,66992.0,66970.0,0.074685]
[1729523340768,0.005,67006.0,66967.0,0.074689]
[1729523340769,0.435471,66983.0,66967.0,0.074689]
[1729523341066,0.074688,66969.0,66967.0,0.074689]
[1729523341255,0.3608,66968.0,66953.0,0.00224045]
[1729523341483,0.3608,66962.0,66954.0,0.0214912]
[1729523341779,0.3608,66962.0,66953.0,0.00224045]
[1729523341780,0.3608,66962.0,66961.0,0.074696]
[1729523342768,0.3608,66962.0,66961.0,0.08450257]
[1729523342965,0.3618,66962.0,66961.0,0.09650257]
[1729523343282,0.436495,66962.0,66961.0,0.02180657]
[1729523344071,0.436495,66962.0,66961.0,0.01380657]
[1729523344470,0.437495,66962.0,66961.0,0.01880657]
[1729523344669,0.437495,66962.0,66961.0,0.017]
[1729523345480,0.885495,66962.0,66961.0,0.017]
[1729523345884,0.437495,66962.0,66961.0,0.017]
[1729523346276,0.885495,66962.0,66961.0,0.017]
[1729523346667,0.3628,66962.0,66961.0,0.017]
[1729523347581,0.437495,66962.0,66961.0,0.01880657]
[1729523347785,0.437495,66962.0,66961.0,0.017]
[1729523349078,0.437495,66962.0,66953.0,0.00224045]
[1729523349279,0.435504,66954.0,66953.0,0.00224045]
[1729523349584,0.3608,66954.0,66953.0,0.0778377]
[1729523350084,0.435504,66954.0,66953.0,0.0031327]
[1729523350287,0.435504,66954.0,66953.0,0.00224045]
[1729523350980,0.435504,66954.0,66953.0,0.00524045]
[1729523351581,0.435504,66954.0,66953.0,0.00224045]
[1729523351781,0.436504,66954.0,66953.0,0.00524045]
[1729523352378,0.437504,66954.0,66953.0,0.00524045]
[1729523354383,0.074713,66946.0,66945.0,0.07573405]
[1729523354586,0.435513,66946.0,66945.0,0.07573405]
[1729523355676,0.437513,66946.0,66945.0,0.07873405]
[1729523357487,0.3628,66946.0,66908.0,0.00224178]
[1729523357685,0.3608,66909.0,66908.0,0.00224178]
[1729523357989,0.3608,66909.0,66908.0,0.08453178]
[1729523358180,0.435554,66909.0,66908.0,0.01509654]
[1729523358381,0.435554,66909.0,66908.0,0.00224178]
[1729523358892,0.074763,66901.0,66900.0,10.0]
[1729523359187,0.435563,66901.0,66900.0,10.0]
[1729523359693,0.435563,66901.0,66900.0,9.992]
[1729523359997,0.3608,66901.0,66900.0,10.08218738]
[1729523360493,0.3628,66909.0,66900.0,10.00742338]
[1729523360699,0.3628,66909.0,66908.0,0.074755]
[1729523361292,0.3618,66909.0,66908.0,0.08839115]
[1729523361499,0.3608,66909.0,66908.0,0.08839115]
[1729523362089,0.3608,66909.0,66908.0,0.01363615]
[1729523362293,0.074763,66901.0,66900.0,9.992]
[1729523362492,0.3608,66921.0,66909.0,0.074754]
[1729523362696,0.3608,66921.0,66920.0,0.074742]
[1729523363215,0.435541,66921.0,66920.0,0.00916889]
[1729523363698,0.435541,66921.0,66907.0,0.00178723]
[1729523363893,0.435541,66921.0,66906.0,0.38424066]
[1729523363894,0.435541,66921.0,66920.0,8.9e-07]
[1729523364195,0.074756,66907.0,66906.0,0.00224125]
[1729523364394,0.074754,66910.0,66906.0,0.00224125]
[1729523364596,0.3608,66913.0,66907.0,0.00335135]
[1729523364793,0.3618,66921.0,66920.0,0.074742]
[1729523365105,0.001,66921.0,66908.0,0.00256953]
[1729523365294,0.001,66921.0,66907.0,0.1476]
[1729523365490,0.001,66921.0,66920.0,0.074742]
[1729523366186,0.001,66921.0,66920.0,0.07753012]
[1729523366187,0.002,66921.0,66920.0,0.07753012]
[1729523366387,0.002,66921.0,66920.0,0.00278812]
[1729523366704,0.076741,66921.0,66920.0,0.00278812]
[1729523366904,0.075741,66921.0,66920.0,0.00278812]
[1729523367901,0.076741,66921.0,66920.0,0.00278812]
[1729523368292,0.437541,66921.0,66920.0,0.001]
[1729523368803,0.3628,66921.0,66920.0,0.00278812]
[1729523368999,0.3628,66921.0,66920.0,0.07753012]
[1729523370104,0.002,66921.0,66920.0,0.00278812]
[1729523370299,0.002,66921.0,66920.0,0.07753012]
[1729523371001,0.076741,66921.0,66920.0,0.00278812]
[1729523371786,0.076741,66921.0,66920.0,0.001]
[1729523374905,0.002,66921.0,66920.0,0.52581012]
[1729523375697,0.3608,66924.0,66923.0,0.074738]
[1729523375893,0.074709,66950.0,66920.0,0.52581012]
[1729523375894,0.3608,66931.0,66930.0,0.074731]
[1729523376102,0.435529,66931.0,66930.0,0.074731]
[1729523376307,0.3608,66931.0,66930.0,0.074731]
[1729523376798,0.3608,66939.0,66937.0,0.074723]
[1729523376999,0.3608,66939.0,66925.0,0.074736]
[1729523377299,0.3608,66939.0,66938.0,0.074722]
[1729523378314,0.074724,66936.0,66934.0,0.074726]
[1729523378503,0.3608,66939.0,66927.0,0.18904]
[1729523378708,0.074716,66943.0,66941.0,0.074718]
[1729523378901,0.3608,66946.0,66945.0,0.074714]
[1729523379301,0.3608,66946.0,66938.0,0.3608]
[1729523379302,0.001,66939.0,66938.0,0.442522]
[1729523379503,0.3608,66953.0,66938.0,0.81596]
[1729523379802,0.3608,66953.0,66938.0,0.3608]
[1729523380007,0.001,66939.0,66938.0,0.3608]
[1729523380199,0.001,66939.0,66938.0,0.435522]
[1729523380398,0.075721,66939.0,66938.0,0.074722]
[1729523380715,0.001,66939.0,66938.0,0.074722]
[1729523381515,0.07472,66940.0,66939.0,0.07472]
[1729523382211,0.07472,66940.0,66933.0,0.18904]
[1729523382212,0.3608,66947.0,66933.0,0.21094046]
[1729523382412,0.075721,66939.0,66938.0,0.009]
[1729523382805,0.3608,66941.0,66936.0,0.074723]
[1729523383110,0.074723,66937.0,66936.0,0.074723]
[1729523384419,0.074723,66937.0,66931.0,0.02162219]
[1729523384600,0.3608,66932.0,66927.0,0.074733]
[1729523385006,0.07474,66923.0,66922.0,0.074739]
[1729523385213,0.3608,66932.0,66918.0,0.435543]
[1729523385517,0.3608,66932.0,66921.0,0.07474]
[1729523385518,0.074741,66922.0,66921.0,0.07474]
[1729523385822,0.074734,66928.0,66922.0,0.074739]
[1729523386010,0.3618,66932.0,66921.0,0.00111824]
[1729523386210,0.074733,66928.0,66927.0,0.074732]